Cogmind - Beta 12 @@@ ROGUE MODE // 2023.03.29 @ 16:00:34 Player: ArabianSandBoa Result: Destroyed by Y-54 Guardian with Gatling Laser Performance ------------- Evolutions (1) 500 Regions Visited (6) 1200 Robots Destroyed (40) 200 Value Destroyed (1130) 1130 Prototype IDs (7) 140 Alien Tech Used (0) 0 Bonus (-1369) -1369 TOTAL SCORE: 1801 Bonus ------- Follower Combat Kills 103 Friendly Fire -1472 Cogmind --------- Core Integrity 0/400 Matter 70/300 Energy 259/280 System Corruption 0% Temperature Cool (6) Movement Treading (240) Ox1 Location -6/Proximity Caves Parts ------- > --- POWER (1) -------- Heavy Ion Engine > --- PROPULSION (3) --- Improved Treads Improved Treads Improved Treads > --- UTILITY (3) ------ Advanced Heat Sink Huge Storage Unit Hacking Drone Bay (1/1) > --- WEAPON (2) ------- RU-N14's Throwing Claymores RU-N14's Throwing Claymores > --- INVENTORY (25) --- Improved Treads Humpback Experimental Sensor Array Relay Coupler [Programmer] (72) Relay Coupler [Programmer] (72) Relay Coupler [Programmer] (88) Relay Coupler [Programmer] (74) Relay Coupler [Programmer] (88) Storm Laser Heavy Missile Launcher Remote Datajack RU-N14's Throwing Claymores (10) RU-N14's Throwing Claymores (10) Spear GAL Module Peak State ------------ > --- POWER ------------ Heavy Ion Engine > --- PROPULSION ------- Improved Treads Improved Treads Improved Treads > --- UTILITY ---------- Advanced Heat Sink Huge Storage Unit Hacking Drone Bay > --- WEAPON ----------- RU-N14's Throwing Claymores RU-N14's Throwing Claymores > --- INVENTORY -------- Improved Treads Humpback Experimental Sensor Array Relay Coupler [Programmer] Relay Coupler [Programmer] Relay Coupler [Programmer] Relay Coupler [Programmer] Relay Coupler [Programmer] Storm Laser Heavy Missile Launcher Remote Datajack RU-N14's Throwing Claymores RU-N14's Throwing Claymores Spear GAL Module [Rating: 48] Favorites ----------- Power Heavy Ion Engine Engine Heavy Ion Engine Propulsion Improved Treads Treads Improved Treads Leg Aluminum Leg Utility Huge Storage Unit Device Advanced Heat Sink Storage Huge Storage Unit Protection Light Armor Plating Weapon Guided Missile Launcher Energy Gun Improved EM Shotgun Energy Cannon Particle Cannon Ballistic Gun Heavy Assault Rifle Launcher Guided Missile Launcher Special Weapon RU-N14's Throwing Claymores Piercing Weapon Spear Build | -11 -10 -10 -9 -9 -7 -6 ------- Run | Jun Mat Min Mat Min Zio Pro Slots Evolved 2 | . . . 2 . . . Power . | . . . . . . . Propulsion 1 | . . . 1 . . . Utility 1 | . . . 1 . . . Weapon . | . . . . . . . Parts Attached 44 | . 6 7 10 6 4 11 Power 5 | . 1 . 1 . . 3 Engine 5 | . 1 . 1 . . 3 Core . | . . . . . . . Reactor . | . . . . . . . Propulsion 7 | . 2 . 2 . . 3 Treads 7 | . 2 . 2 . . 3 Leg . | . . . . . . . Wheel . | . . . . . . . Hover . | . . . . . . . Flight . | . . . . . . . Utility 15 | . 1 6 4 3 . 1 Device 8 | . 1 4 1 1 . 1 Storage 2 | . . 2 . . . . Processor . | . . . . . . . Hackware . | . . . . . . . Protection 5 | . . . 3 2 . . Artifact . | . . . . . . . Weapon 17 | . 2 1 3 3 4 4 Energy Gun 3 | . . . 1 2 . . Energy Cannon 4 | . 2 . 2 . . . Ballistic Gun 2 | . . 1 . . 1 . Ballistic Cannon . | . . . . . . . Launcher 4 | . . . . 1 2 1 Special Weapon 3 | . . . . . 1 2 Impact Weapon . | . . . . . . . Slashing Weapon . | . . . . . . . Piercing Weapon 1 | . . . . . . 1 Special Melee Weapon . | . . . . . . . Unidentified Prototypes 6 | . . 1 2 . 2 1 Parts Lost 9 | . . . . 4 . 5 Power 1 | . . . . . . 1 Propulsion 2 | . . . . . . 2 Utility 3 | . . . . 2 . 1 Weapon 3 | . . . . 2 . 1 Highest Loss Streak 5 | . . . . 3 . 5 To Critical Strikes . | . . . . . . . Average Slot Usage (%) 94 | . 91 100 99 99 89 86 Engine 11 | . 14 14 10 11 11 10 Treads 31 | . 14 28 33 33 33 32 Device 11 | . 12 14 11 10 11 11 Storage 11 | . 14 14 11 11 11 11 Protection 8 | . . . 11 11 11 9 Energy Gun 4 | . 3 . 7 21 2 . Energy Cannon 6 | . 10 18 10 . . . Ballistic Gun 3 | . 8 9 3 . 1 . Launcher 4 | . . . . . 9 10 Naked Turns . | . . . . . . . Heaviest Build 106 | 10 19 94 100 100 103 106 Greatest Support 69 | 20 46 46 69 69 69 69 Greatest Overweight (x) 2 | . . 2 1 1 1 1 Average Overweight (x) 1 | . . 1 1 1 1 1 Largest Inventory Capacity 25 | . 8 25 25 25 25 25 Average Capacity 23 | . 8 21 25 25 25 25 Most Carried 25 | . 8 19 25 25 25 25 Average Carried 20 | . 7 14 22 21 23 24 Final Capacity 25 | 8 8 25 25 25 25 25 Final Carried 25 | 6 8 19 25 25 25 19 Class Distribution -------------------- 100% | Mutant Dominant Class ---------------- Mutant | -10/Materials Mutant | -10/Mines Mutant | -9/Materials Mutant | -9/Mines Mutant | -7/Zion Mutant | -6/Proximity Caves Resources | -11 -10 -10 -9 -9 -7 -6 ----------- Run | Jun Mat Min Mat Min Zio Pro Matter Collected 749 | 142 24 164 145 85 31 158 Remotely . | . . . . . . . Salvage Created 1566 | . 24 285 545 274 . 438 Parts 80 | . 1 15 34 17 . 13 Haulers Intercepted 4 | . . . 4 . . . Recyclers Shooed . | . . . . . . . Parts Field Recycled . | . . . . . . . Retrieved Matter . | . . . . . . . Parts Self-Destructed 10 | . . . . . . 10 Prevented . | . . . . . . . Kills | -11 -10 -10 -9 -9 -7 -6 ------- Run | Jun Mat Min Mat Min Zio Pro Combat Hostiles Destroyed 51 | . . 2 7 28 . 14 Melee 3 | . . . . . . 3 Guns 11 | . . . 4 7 . . Cannons 6 | . . 2 3 1 . . AOE 31 | . . . . 20 . 11 Classes Destroyed 11 | . 1 1 4 1 . 4 Hauler 4 | . . . 4 . . . Recycler 1 | . . . 1 . . . Watcher 2 | . 1 . 1 . . . Swarmer 13 | . . . 4 5 . 4 Grunt 9 | . . . 1 3 . 5 Brawler 2 | . . . . . . 2 Duelist 1 | . . . . . . 1 Sentry 5 | . . 2 2 . . 1 Programmer 1 | . . . . . . 1 Assembled 20 | . . . . 20 . . Fireman 1 | . . . . . . 1 Best Kill Streak 23 | . 1 2 3 23 . 5 Combat Bots Only 23 | . . 2 3 23 . 5 Max Kills in Single Turn 13 | . 1 2 2 13 . 3 Gunslinging . | . . . . . . . Exploded 13 | . . . . 13 . 3 Melee 1 | . . . . . . 1 Uniques/NPCs Destroyed 1 | . . 1 . . . . YI-UF0 (-10/Mines) Combat | -11 -10 -10 -9 -9 -7 -6 -------- Run | Jun Mat Min Mat Min Zio Pro Damage Taken 2349 | . . 32 293 544 . 1480 Core 423 | . . 18 53 30 . 322 Absorbed by Shields . | . . . . . . . Regen/Repaired (Parts) 454 | . . . . . 454 . Core Remaining (%) 96 | 100 . 92 . . . . Volleys Fired 81 | . 2 13 29 16 . 21 Largest 2 | . 2 2 2 2 . 2 Hottest 136 | . 136 136 101 110 . 39 Shots Fired 138 | . 4 26 58 28 . 22 Gun 52 | . . . 29 23 . . Cannon 60 | . 4 26 29 1 . . Launcher 24 | . . . . 4 . 20 Special 2 | . . . . . . 2 Kinetic 15 | . . . 15 . . . Thermal 51 | . 4 26 10 11 . . Explosive 26 | . . . . 4 . 22 Electromagnetic 46 | . . . 33 13 . . Robot Hit Streak 14 | . 1 5 6 14 . 7 Robot Miss Streak 5 | . 2 3 4 5 . 2 Penetration Max . | . . . . . . . Secondary Targets . | . . . . . . . Shots Hit Robots 97 | . 1 14 32 24 . 26 Core Hits 120 | . 1 6 18 55 . 40 Critical Kills . | . . . . . . . Critical Parts Destroyed . | . . . . . . . Critical Strikes 2 | . . . . . . 2 Sever 2 | . . . . . . 2 Melee Attacks 17 | . . . . . . 17 Impact . | . . . . . . . Slashing . | . . . . . . . Piercing 17 | . . . . . . 17 Sneak Attacks 1 | . . . . . . 1 Combat Hostiles . | . . . . . . . Follow-up Attacks . | . . . . . . . Damage Inflicted 4815 | . 42 306 614 1573 . 2280 Guns 612 | . . . 301 311 . . Cannons 679 | . 42 306 313 18 . . Explosions 3082 | . . . . 1244 . 1838 Melee 373 | . . . . . . 373 Ramming . | . . . . . . . Kinetic 146 | . . . 146 . . . Thermal 588 | . 42 306 41 199 . . Explosive 3002 | . . . . 1164 . 1838 Electromagnetic 637 | . . . 427 210 . . Impact . | . . . . . . . Slashing 69 | . . . . . . 69 Piercing 373 | . . . . . . 373 Highest Corruption . | . . . . . . . Average Corruption . | . . . . . . . Corruption Purged . | . . . . . . . Corruption Blocked . | . . . . . . . Overload Shots . | . . . . . . . Overflow Damage 67 | . . . . 16 . 51 Projectiles . | . . . . . . . Explosions 67 | . . . . 16 . 51 Melee . | . . . . . . . Knockbacks . | . . . . . . . Impact . | . . . . . . . Kinetic . | . . . . . . . Secondary . | . . . . . . . Self-Inflicted Damage 358 | . . . . 95 . 263 Shots 12 | . . . . 5 . 7 Rammed . | . . . . . . . Targets Rammed . | . . . . . . . Kicked . | . . . . . . . Crushed . | . . . . . . . Highest Temperature 255 | . 150 255 1 227 . . Average Temperature 91 | . 81 113 1 71 . . Received Heat Transfer 555 | . . 9 87 81 . 378 Siege Activations . | . . . . . . . Robots Corrupted . | . . . . . . . Combat Hostiles . | . . . . . . . Parts Fried 7 | . . . 6 1 . . Impact Corruptions . | . . . . . . . Robots Melted . | . . . . . . . Combat Hostiles . | . . . . . . . Parts Melted . | . . . . . . . Heat Transferred 903 | . 74 555 74 200 . . Parts Sabotaged . | . . . . . . . Parts Stolen . | . . . . . . . Parts Stripped . | . . . . . . . Power Chain Reactions 1 | . . . . 1 . . Missiles Intercepted . | . . . . . . . Alert | -11 -10 -10 -9 -9 -7 -6 ------- Run | Jun Mat Min Mat Min Zio Pro Peak Influence 257 | . 32 55 257 182 . . Initial 12 | . . 12 . . . . Average 64 | . 13 15 116 89 . . Maximum Alert Level 1 | . . . 1 . . . Low Security (%) 95 | . 100 100 85 100 . . Level 1 4 | . . . 14 . . . Level 2 . | . . . . . . . Level 3 . | . . . . . . . Level 4 . | . . . . . . . Level 5 . | . . . . . . . High Security . | . . . . . . . Max Security . | . . . . . . . Squads Dispatched 2 | . . . 1 . . 1 Investigation 1 | . . . 1 . . . Extermination . | . . . . . . . Reinforcement . | . . . . . . . Assault 1 | . . . . . . 1 Garrison . | . . . . . . . Intercept . | . . . . . . . Searches Triggered . | . . . . . . . Construction Impeded . | . . . . . . . Haulers Reinforced . | . . . . . . . Active Scanning Responses . | . . . . . . . Cargo Convoy Interrupts . | . . . . . . . Stealth | -11 -10 -10 -9 -9 -7 -6 --------- Run | Jun Mat Min Mat Min Zio Pro Distress Signals 2 | . . . 2 . . . Communications Jammed . | . . . . . . . Distress Signals . | . . . . . . . Times Spotted 64 | . 1 2 16 28 . 17 Peak Tracking Total 22 | . 1 2 5 22 . 5 Tactical Retreats 2 | . . . 2 . . . Traps | -11 -10 -10 -9 -9 -7 -6 ------- Run | Jun Mat Min Mat Min Zio Pro Traps Triggered . | . . . . . . . Indirectly . | . . . . . . . Trap Hack Attempts . | . . . . . . . Triggered . | . . . . . . . Disarmed . | . . . . . . . Reprogrammed . | . . . . . . . Reused . | . . . . . . . Traps Extracted . | . . . . . . . Installed . | . . . . . . . Triggered 1 | . . . . . . 1 Most Traps Carried 4 | . . . . 4 4 . Machines | -11 -10 -10 -9 -9 -7 -6 ---------- Run | Jun Mat Min Mat Min Zio Pro Machines Disabled 3 | . . . 2 . . 1 Max in Single Turn 1 | . . . 1 . . 1 Machines Repaired . | . . . . . . . Machines Sabotaged . | . . . . . . . Overloaded Fab Kills . | . . . . . . . Hacking | -11 -10 -10 -9 -9 -7 -6 --------- Run | Jun Mat Min Mat Min Zio Pro Machines Accessed 6 | . 3 . 3 . . . Terminals 3 | . 2 . 1 . . . Fabricators . | . . . . . . . Repair Stations . | . . . . . . . Recycling Units 3 | . 1 . 2 . . . Scanalyzers . | . . . . . . . Garrison Access . | . . . . . . . Total Hacks 23 | . 15 . 8 . . . Successful 10 | . 6 . 4 . . . Failed 13 | . 9 . 4 . . . Catastrophic 1 | . . . 1 . . . Database Lockouts . | . . . . . . . Manual 7 | . 7 . . . . . Terminals 8 | . 5 . 3 . . . Fabricators . | . . . . . . . Repair Stations . | . . . . . . . Recycling Units 15 | . 10 . 5 . . . Scanalyzers . | . . . . . . . Garrison Access . | . . . . . . . Terminal Hacks 1 | . . . 1 . . . Prototype ID Bank 1 | . . . 1 . . . Fabricator Hacks . | . . . . . . . Repair Station Hacks . | . . . . . . . Recycling Unit Hacks 5 | . 2 . 3 . . . Report Inventory 3 | . 1 . 2 . . . Retrieve Components 2 | . 1 . 1 . . . Scanalyzer . | . . . . . . . Garrison Access Hacks . | . . . . . . . Unauthorized Hacks 4 | . 4 . . . . . Terminals 2 | . 2 . . . . . Botnet 2 | . 2 . . . . . Fabricators . | . . . . . . . Repair Stations . | . . . . . . . Recycling Units 2 | . 2 . . . . . Reject 1 | . 1 . . . . . Mask 1 | . 1 . . . . . Scanalyzers . | . . . . . . . Garrison Access . | . . . . . . . Data Cores Recovered . | . . . . . . . Used . | . . . . . . . Hacking Detections 6 | . 3 . 3 . . . Full Trace Events 2 | . 1 . 1 . . . Feedback Events . | . . . . . . . Feedback Blocked . | . . . . . . . Robot Schematics Acquired 2 | . . . . . 2 . Robots Built . | . . . . . . . Authchips . | . . . . . . . Time . | . . . . . . . Total Robot Build Rating . | . . . . . . . Part Schematics Acquired 14 | . . . . . 14 . Parts Built . | . . . . . . . Authchips . | . . . . . . . Time . | . . . . . . . Total Part Build Rating . | . . . . . . . Parts Repaired . | . . . . . . . Time . | . . . . . . . Parts Recycled . | . . . . . . . Recycled Matter . | . . . . . . . Retrieved Matter . | . . . . . . . Retrieved Components 6 | . 3 . 3 . . . Parts Scanalyzed . | . . . . . . . Part Schematics Acquired . | . . . . . . . Parts Damaged . | . . . . . . . Bothacking | -11 -10 -10 -9 -9 -7 -6 ------------ Run | Jun Mat Min Mat Min Zio Pro Used RIF Installer . | . . . . . . . Robots Hacked . | . . . . . . . Non-combat . | . . . . . . . Combat . | . . . . . . . Robot Hacks Applied . | . . . . . . . Relay Couplers Released . | . . . . . . . Fabnet Peak Effective % . | . . . . . . . Robots Rewired . | . . . . . . . Allies Hacked . | . . . . . . . Hacks Repelled . | . . . . . . . Allies | -11 -10 -10 -9 -9 -7 -6 -------- Run | Jun Mat Min Mat Min Zio Pro Total Allies 9 | . . 3 . . 6 . Largest Group 6 | . . 3 3 . 6 6 Highest-Rated Group 121 | . . 40 40 . 121 121 Highest-Rated Ally 31 | . . 16 16 . 31 31 Total Orders 1 | . . . 1 . . . STAY 1 | . . . 1 . . . Ally Attacks 72 | . . . 35 . . 37 Total Damage 863 | . . . 400 . . 463 Kills 8 | . . . 7 . . 1 Allies Corrupted . | . . . . . . . Allies Melted . | . . . . . . . Intel | -11 -10 -10 -9 -9 -7 -6 ------- Run | Jun Mat Min Mat Min Zio Pro Robot Analysis Total . | . . . . . . . Derelict Logs Recovered 3 | . . 2 . 1 . . Drone Launches . | . . . . . . . Drone Recoveries . | . . . . . . . Exploration | -11 -10 -10 -9 -9 -7 -6 ------------- Run | Jun Mat Min Mat Min Zio Pro Turns Passed 6698 | . 218 1483 1257 669 2183 888 Spaces Moved 2575 | 1 118 533 460 251 892 320 Core . | . . . . . . . Treads 2508 | . 52 533 460 251 892 320 Legs 67 | 1 66 . . . . . Wheels . | . . . . . . . Hover . | . . . . . . . Flight . | . . . . . . . Fastest Speed 120 | 120 120 160 240 240 240 240 Average Speed 240 | 120 137 263 240 240 240 240 Slowest Speed 320 | 120 160 320 240 240 240 240 Overloaded Moves . | . . . . . . . Propulsion Burnouts . | . . . . . . . Robots Hopped . | . . . . . . . Cave-ins Triggered . | . . . . . . . Exploration Rate (%) 51 | 2 22 92 32 66 84 62 Regions Visited 6 Branch Regions 4 Pre-discovered Areas 3 | . . 1 . 1 1 . Known Exits Taken . | . . . . . . . Unknown Exits Taken 6 | 1 1 1 1 1 1 . Scrap Searched 7 | . . 3 . 1 3 . Spaces Dug . | . . . . . . . Terrain Destroyed 165 | . . . . 51 . 114 Melee . | . . . . . . . Projectile . | . . . . . . . AOE 165 | . . . . 51 . 114 Terrain Rammed . | . . . . . . . Walls Destroyed . | . . . . . . . Machines Disabled . | . . . . . . . Actions | -11 -10 -10 -9 -9 -7 -6 --------- Run | Jun Mat Min Mat Min Zio Pro Total 2942 | . 174 584 558 290 946 390 Wait 115 | . 23 18 36 14 7 17 Move 2569 | . 117 532 459 250 891 320 Hop . | . . . . . . . Pick Up 58 | . 12 11 13 4 18 . Fast Attach 11 | . 5 . 2 . 3 1 Attach 13 | . . . 3 4 . 6 Detach 2 | . . . 2 . . . Swap 20 | . 1 7 5 2 1 4 Drop 54 | . 14 3 9 . 26 2 Fire 81 | . 2 13 29 16 . 21 Melee 17 | . . . . . . 17 Ram . | . . . . . . . Kick . | . . . . . . . Crush . | . . . . . . . Escape Stasis . | . . . . . . . Rewire 2 | . . . . . . 2 Trap . | . . . . . . . Miscellaneous . | . . . . . . . Route ------- -11/Junkyard -10/Materials -10/Mines (discovered 2 exits: *Mat x2) -9/Materials (discovered 2 exits: Mat / [*Min]) -9/Mines (discovered 2 exits: *Mat / [*Zio]) -7/Zion -6/Proximity Caves History --------- Turn | Location | Event 1 | -11/Junkyard | Discovered new exit (range 0) 1 | -11/Junkyard | Entered Materials 193 | -10/Materials | Discovered new exit (range 16) 219 | -10/Materials | Entered Mines 237 | -10/Mines | Discovered new exit (range 9) 293 | -10/Mines | YI-UF0 nonchalantly dropped a Grenade Launcher on the ground 308 | -10/Mines | Destroyed YI-UF0 315 | -10/Mines | Build established: Mutant 349 | -10/Mines | Found a damaged Exp. Sensor Array with a note attached 353 | -10/Mines | Found Prototype Device 354 | -10/Mines | Identified Exp. Sensor Array 856 | -10/Mines | Discovered new exit (range 7) 962 | -10/Mines | Learned 4 Materials zone layouts 1468 | -10/Mines | Assisted by bots powering up and referring to "LRC-V3" 1702 | -10/Mines | Entered Materials 1702 | -9/Materials | Accompanied by 3 allies 1702 | -9/Materials | Evolved 2 slots: Propulsion x1, Utility x1 1703 | -9/Materials | Identified exit to Materials 2864 | -9/Materials | Discovered new exit (range 7) 2959 | -9/Materials | Entered Mines 2960 | -9/Mines | Assembled infested the area 2994 | -9/Mines | Destroyed 23 combat bots 3019 | -9/Mines | Lost 3 parts (2u1w) 3127 | -9/Mines | Learned 4 Materials zone layouts 3151 | -9/Mines | Received a Rocket Launcher from a helpful Derelict 3329 | -9/Mines | Discovered exit to Materials (range 6) 3505 | -9/Mines | Learned location of Storage (-8) 3520 | -9/Mines | A Derelict revealed a hidden shortcut to a safe place 3579 | -9/Mines | Found a hidden stash of uninstalled traps 3628 | -9/Mines | Entered Zion 3715 | -7/Zion | Found Prototype Special Weapon 3715 | -7/Zion | Identified RU-N14's Throwing Claymores 3721 | -7/Zion | Found RU-N14's Throwing Claymores 3724 | -7/Zion | Found RU-N14's Throwing Claymores 3728 | -7/Zion | Found RU-N14's Throwing Claymores 3893 | -7/Zion | Discovered new exit (range 16) 4000 | -7/Zion | Found Prototype Launcher 4000 | -7/Zion | Identified Gui. Missile Launcher 4281 | -7/Zion | Found GAL Module 4323 | -7/Zion | Visited the Megawrench Repair Shop 4323 | -7/Zion | Megawrench repaired 8 parts 4397 | -7/Zion | Found Relay Coupler [Programmer] 4400 | -7/Zion | Found Relay Coupler [Programmer] 4404 | -7/Zion | Found Relay Coupler [Programmer] 4412 | -7/Zion | Found Relay Coupler [Programmer] 4415 | -7/Zion | Found Relay Coupler [Programmer] 4469 | -7/Zion | Gained Derelict followers 4620 | -7/Zion | Found Prototype Energy Gun 4985 | -7/Zion | Given the Hacking Drone Bay 4985 | -7/Zion | Found Prototype Device 5362 | -7/Zion | Learned location of Data Miner (-6) 5811 | -7/Zion | Entered Proximity Caves 5811 | -6/Proximity Caves | Accompanied by 6 allies 5976 | -6/Proximity Caves | Spotted B-75 Beast 6006 | -6/Proximity Caves | Allies destroyed B-75 Beast 6552 | -6/Proximity Caves | Attracted the attention of an 0b10 outpost 6555 | -6/Proximity Caves | Core integrity fell below 50% 6627 | -6/Proximity Caves | Core integrity fell below 20% 6629 | -6/Proximity Caves | Lost 5 parts (1p2n1u1w) 6667 | -6/Proximity Caves | Identified Hacking Drone Bay 6686 | -6/Proximity Caves | Attracted the attention of an 0b10 checkpoint 6699 | -6/Proximity Caves | Destroyed by Y-54 Guardian with Gatling Laser Last Messages --------------- 06617_ Attempting to rewire L-41 Fighter. 06618_ C-30 ARC bursts open, deploying its payload. 06618_ G-67 Veteran unfolds itself. 06618_ G-50 Soldier unfolds itself. 06622_ Critical hit (Burn: +37). 06625_ G-50 Soldier destroyed. 06630_ Carbon-fiber Leg fries itself beyond repair. 06631_ G-67 Veteran destroyed. 06631_ L-41 Fighter destroyed. 06631_ G-50 Soldier destroyed. 06633_ Destroyed Lgt. Angular Momentum Engine. 06635_ Field Laser fries itself beyond repair. 06639_ The unstable cave ceiling collapses. 06639_ G-50 Soldier destroyed. 06641_ The unstable cave ceiling collapses. 06667_ Identified Hacking Drone Bay. 06686_ Y-54 Guardian: "INTERCEPTING UNREGISTERED DERELICT." 06696_ Y-54 Guardian Imp. Light Armor Plating severed. 06696_ Y-54 Guardian Flak Gun severed. 06699_ The unstable cave ceiling collapses. Map ----- +----------------------------------------------------+ | # #?????# ##????####???????????????? | | ## #?????## ##???# ##??????????????? | | ### ??????### #### #??????????????? | | #?# #???????# ### #??????????????? | | ## #???????# ### #???????????????? | | ### #???????# ### ##???????????????? | | ### #???????## ##?# #????????????????? | | ## #????????##??## ## ##????????????????? | | # ????????##### ## ###?????????????????? | | ????????# ## ##???????????????????? | | ????????# ## ##???????????????????? | | #?####### #???????????????????? | | ## ###???????????????????? | | #% # #?????????????????????? | | #?????????????????????? | | % #?????????????????????? | | # # % #?????????????????????? | | ?# # % # #?????????????????????? | | ?????# ###???????????????????? | | ?????# #???????????????????? | | ?????# ### ###???????????????????? | | ?????# ##?# #?????????????????????? | | ???? ### ##??# #?????????????????????? | | ?? ##?####???# #?????????????????????? | | ?## ##?????????# #?????????????????????? | | ??## #????????###@ #?????????????????????? | | ???# ## #?????#### #?????????????????????? | | ??? #?## #?????# Y####?????????????????????? | | ?? #???## #????? [#????????????????????????? | | ?? ?????# #??? ????????????????????????? | | ?????????## ##??# ????????????????????????? | | ??????????##????## # $ ???????????????????????? | | ????????????????## # ???????????????????????? | | ?????????????????## ?# ??????????????????????? | | ??????????????????#??# ??????????????????????? | | ????????????????????? ?????????????????????? | | ????????????????????? ?????????????????????? | | ????????????????????? ????????????????????? | | ?????????????????????### ###????????????????????? | | ????????????????????????###??????????????????????? | | ?????????????????????????????????????????????????? | | ?????????????????????????????????????????????????? | | ?????????????????????????????????????????????????? | | ?????????????????????????????????????????????????? | | ?????????????????????????????????????????????????? | | ?????????????????????????????????????????????????? | | ?????????????????????????????????????????????????? | | ?????????????????????????????????????????????????? | | ?????????????????????????????????????????????????? | | ?????????????????????????????????????????????????? | +----------------------------------------------------+ Best States ------------- Heat Dissipation 50 Energy Generation 18 Energy Capacity 280 Matter Stores 300 Matter Capacity 300 Sight Range 16 Robot Scan Range 14 Terrain Scan Density 10 Armor Coverage 300 Evasion (%) 55 Recoil Reduction 3 Item Schematics ----------------- Imp. Hacking Suite | -7/Zion | Archive Xenon Bombardment Thruster | -7/Zion | Archive Imp. Reaction Control System | -7/Zion | Archive Transmission Jammer | -7/Zion | Archive Mak. Trap Scanner | -7/Zion | Archive Hrd. Heavy Armor Plating | -7/Zion | Archive Lgt. Fission Core | -7/Zion | Archive Component Analysis Suite | -7/Zion | Archive Spk. Medium Treads | -7/Zion | Archive Imp. EM Pulse Cannon | -7/Zion | Archive Wave Gun | -7/Zion | Archive Hvy. Riot Gun | -7/Zion | Archive Arm. Huge Wheel | -7/Zion | Archive Cloaking Device | -7/Zion | Archive Robot Schematics ------------------ T-07 Excavator | -7/Zion | Archive Y-54 Guardian | -7/Zion | Archive Fabricated ------------ Nothing Alien Tech Used ----------------- None Achievements -------------- None Challenges ------------ None Game ------ Seed StructuralHellfireCloak Manual? 0 Play Time 00:28:46 Cumulative 513.9 hours Start 2023.03.29 @ 15:29:45 End 2023.03.29 @ 16:00:34 Sessions 1 Manual Loads 0 Difficulty Rogue Special Mode None Game No. 545 Rogue 545 Adventurer 0 Explorer 0 Win Type - Total 1 Types 1/0/0/0/0/0/0/0/0 Lore% 64 Gallery% 83 Achievement% 65 Wizard Run 0 Options --------- ASCII 0 Keyboard 0 Movement Mouse Keybinds 0 Fullscreen 2 Font 24/Smallcaps Map View 76x50 Tactical HUD 1 Map Filters NONE Filters NONE Steam 1 RUN: 8b9665fb-186d-4180-a6a6-f9bdacc09de9